{"text_format":"1","workbook":"xlsx","n_sheets":3,"sheets":["Dashboard","Geräteliste","Pivotdaten"],"not_rendered":{"charts":0,"images":0,"macros":1,"external_links":0,"defined_names":13,"comments":0,"pivot_tables":1},"unopened":[],"bounds":{"document_bytes":16777216,"sheet_cells":100000,"rows_first":2000,"rows_last":500,"rows_between":2000,"halvings":0,"cell_chars":16384,"cell_head_chars":4096},"cells_cut":0,"cells_raw":0,"read":"whole","date_system":"1900"}

{"sheet":"Dashboard","index":0,"n_rows":20,"n_cols":6,"rows_kept":20,"cut":false,"hidden":false,"merged":[]}
[null,"Dashboard"]
[]
[]
[null,null,null,null,null,"Gesamtanzahl"]
[null,null,null,null,null,{"$f":"GETPIVOTDATA(\"Anzahl\",Pivotdaten!$B$11)","v":3}]
[]
[null,null,null,null,null,"Monatliche Kosten gesamt"]
[null,null,null,null,null,{"$f":"GETPIVOTDATA(\"Monatliche Kosten gesamt\",Pivotdaten!$B$11)","v":1765.5943035068672}]
[]
[null,null,null,null,null,"Betriebskosten"]
[null,null,null,null,null,{"$f":"GETPIVOTDATA(\"Betriebskosten\",Pivotdaten!$B$11)","v":605}]
[]
[null,null,null,null,null,"Monatliche Abschreibung"]
[null,null,null,null,null,{"$f":"GETPIVOTDATA(\"Monatliche Abschreibung\",Pivotdaten!$B$11)","v":659.72222222222217}]
[]
[null,null,null,null,null,"Zahlungsbetrag"]
[null,null,null,null,null,{"$f":"GETPIVOTDATA(\"Zahlungsbetrag\",Pivotdaten!$B$11)","v":1160.5943035068672}]
[]
[null,null,null,null,null,"Aktueller Wert"]
[null,null,null,null,null,{"$f":"GETPIVOTDATA(\"Aktueller Wert \",Pivotdaten!$B$11)","v":36491.552511415524}]

{"sheet":"Geräteliste","index":1,"n_rows":9,"n_cols":20,"rows_kept":9,"cut":false,"hidden":false,"merged":[]}
[null,"Geräteliste"]
[]
[null,null,null,null,null,"Hervorheben, wenn die verbleibenden monatlichen Zahlungen geringer sind als: ",20]
[]
[null,"Anlagen- oder \nSeriennummer","Artikelbeschreibung \n(Hersteller und Modell)","Standort","Zustand","Lieferant","Verbleibende Betriebsjahre","Anfangswert","Anzahlung","Kaufdatum \noder Leasingdatum","Darlehensbedingungen \n(Jahre)","Darlehensrate","Monatliche Betriebskosten","Erwarteter Wert bei Vertragsende","Verbleibende monatliche Zahlungen","Monatliche Zahlung","Monatliche Kosten \ngesamt","Jährliche Abschreibung \n(linear)","Monatliche Abschreibung \n(linear)","Aktueller Wert"]
[null,123,"Marke/ Modell 1","Hauptfiliale","Gut","Lokal",5,30000,5000,"2011-01-15",4,0.1,200,20000,{"$f":"IFERROR(SUMPRODUCT(--(DAY(ROW(OFFSET($A$1,,,DATE(YEAR(GERÄTE[[#This Row],[Kaufdatum \noder Leasingdatum]])+GERÄTE[[#This Row],[Darlehensbedingungen \n(Jahre)]],MONTH(GERÄTE[[#This Row],[Kaufdatum \noder Leasingdatum]])-1,DAY(GERÄTE[[#This Row],[Kaufdatum \noder Leasingdatum]]))-TODAY()))+DATE(YEAR(GERÄTE[[#This Row],[Kaufdatum \noder Leasingdatum]])+GERÄTE[[#This Row],[Darlehensbedingungen \n(Jahre)]],MONTH(GERÄTE[[#This Row],[Kaufdatum \noder Leasingdatum]]),DAY(GERÄTE[[#This Row],[Kaufdatum \noder Leasingdatum]]))-1)=DAY(GERÄTE[[#This Row],[Kaufdatum \noder Leasingdatum]]))),0)","v":24},{"$f":"IFERROR(-(GERÄTE[Anfangswert]>0)*(GERÄTE[Anfangswert]<>GERÄTE[Anzahlung])*PMT(GERÄTE[Darlehensrate]/MonateImJahr,GERÄTE[Darlehensbedingungen \n(Jahre)]*MonateImJahr,GERÄTE[Anfangswert]-GERÄTE[Anzahlung]),0)","v":634.06458586867973},{"$f":"GERÄTE[[#This Row],[Monatliche Zahlung]]+GERÄTE[Monatliche Betriebskosten]","v":834.06458586867973},{"$f":"IFERROR((GERÄTE[Anfangswert]>0)*SLN(GERÄTE[Anfangswert],GERÄTE[Erwarteter Wert bei Vertragsende],GERÄTE[Darlehensbedingungen \n(Jahre)]),0)","v":2500},{"$f":"IFERROR(GERÄTE[Jährliche Abschreibung \n(linear)]/MonateImJahr,0)","v":208.33333333333334},{"$f":"IFERROR(GERÄTE[Anfangswert]-(GERÄTE[Jährliche Abschreibung \n(linear)]*((TODAY()-GERÄTE[Kaufdatum \noder Leasingdatum])/TageImJahr)),0)","v":25034.246575342466}]
[null,234,"Marke/ Modell 2","Hauptfiliale","Gut","Lokal",4,12500,1500,"2011-03-10",3,7.7499999999999999E-2,120,3000,{"$f":"IFERROR(SUMPRODUCT(--(DAY(ROW(OFFSET($A$1,,,DATE(YEAR(GERÄTE[[#This Row],[Kaufdatum \noder Leasingdatum]])+GERÄTE[[#This Row],[Darlehensbedingungen \n(Jahre)]],MONTH(GERÄTE[[#This Row],[Kaufdatum \noder Leasingdatum]])-1,DAY(GERÄTE[[#This Row],[Kaufdatum \noder Leasingdatum]]))-TODAY()))+DATE(YEAR(GERÄTE[[#This Row],[Kaufdatum \noder Leasingdatum]])+GERÄTE[[#This Row],[Darlehensbedingungen \n(Jahre)]],MONTH(GERÄTE[[#This Row],[Kaufdatum \noder Leasingdatum]]),DAY(GERÄTE[[#This Row],[Kaufdatum \noder Leasingdatum]]))-1)=DAY(GERÄTE[[#This Row],[Kaufdatum \noder Leasingdatum]]))),0)","v":14},{"$f":"IFERROR(-(GERÄTE[Anfangswert]>0)*(GERÄTE[Anfangswert]<>GERÄTE[Anzahlung])*PMT(GERÄTE[Darlehensrate]/MonateImJahr,GERÄTE[Darlehensbedingungen \n(Jahre)]*MonateImJahr,GERÄTE[Anfangswert]-GERÄTE[Anzahlung]),0)","v":343.43280007691891},{"$f":"GERÄTE[[#This Row],[Monatliche Zahlung]]+GERÄTE[Monatliche Betriebskosten]","v":463.43280007691891},{"$f":"IFERROR((GERÄTE[Anfangswert]>0)*SLN(GERÄTE[Anfangswert],GERÄTE[Erwarteter Wert bei Vertragsende],GERÄTE[Darlehensbedingungen \n(Jahre)]),0)","v":3166.6666666666665},{"$f":"IFERROR(GERÄTE[Jährliche Abschreibung \n(linear)]/MonateImJahr,0)","v":263.88888888888886},{"$f":"IFERROR(GERÄTE[Anfangswert]-(GERÄTE[Jährliche Abschreibung \n(linear)]*((TODAY()-GERÄTE[Kaufdatum \noder Leasingdatum])/TageImJahr)),0)","v":6678.5388127853885}]
[null,345,"Marke/ Modell 2","Filiale 1","Mittel","Sonstige",1,10000,2500,"2010-09-15",4,0.08,285,1000,{"$f":"IFERROR(SUMPRODUCT(--(DAY(ROW(OFFSET($A$1,,,DATE(YEAR(GERÄTE[[#This Row],[Kaufdatum \noder Leasingdatum]])+GERÄTE[[#This Row],[Darlehensbedingungen \n(Jahre)]],MONTH(GERÄTE[[#This Row],[Kaufdatum \noder Leasingdatum]])-1,DAY(GERÄTE[[#This Row],[Kaufdatum \noder Leasingdatum]]))-TODAY()))+DATE(YEAR(GERÄTE[[#This Row],[Kaufdatum \noder Leasingdatum]])+GERÄTE[[#This Row],[Darlehensbedingungen \n(Jahre)]],MONTH(GERÄTE[[#This Row],[Kaufdatum \noder Leasingdatum]]),DAY(GERÄTE[[#This Row],[Kaufdatum \noder Leasingdatum]]))-1)=DAY(GERÄTE[[#This Row],[Kaufdatum \noder Leasingdatum]]))),0)","v":20},{"$f":"IFERROR(-(GERÄTE[Anfangswert]>0)*(GERÄTE[Anfangswert]<>GERÄTE[Anzahlung])*PMT(GERÄTE[Darlehensrate]/MonateImJahr,GERÄTE[Darlehensbedingungen \n(Jahre)]*MonateImJahr,GERÄTE[Anfangswert]-GERÄTE[Anzahlung]),0)","v":183.09691756126861},{"$f":"GERÄTE[[#This Row],[Monatliche Zahlung]]+GERÄTE[Monatliche Betriebskosten]","v":468.09691756126858},{"$f":"IFERROR((GERÄTE[Anfangswert]>0)*SLN(GERÄTE[Anfangswert],GERÄTE[Erwarteter Wert bei Vertragsende],GERÄTE[Darlehensbedingungen \n(Jahre)]),0)","v":2250},{"$f":"IFERROR(GERÄTE[Jährliche Abschreibung \n(linear)]/MonateImJahr,0)","v":187.5},{"$f":"IFERROR(GERÄTE[Anfangswert]-(GERÄTE[Jährliche Abschreibung \n(linear)]*((TODAY()-GERÄTE[Kaufdatum \noder Leasingdatum])/TageImJahr)),0)","v":4778.767123287671}]
[null,"Summe",null,null,null,null,{"$f":"SUBTOTAL(101,GERÄTE[Verbleibende Betriebsjahre])","v":3.3333333333333335},{"$f":"SUBTOTAL(109,GERÄTE[Anfangswert])","v":52500},{"$f":"SUBTOTAL(109,GERÄTE[Anzahlung])","v":9000},null,{"$f":"SUBTOTAL(101,GERÄTE[Darlehensbedingungen \n(Jahre)])","v":3.6666666666666665},{"$f":"SUBTOTAL(101,GERÄTE[Darlehensrate])","v":8.5833333333333331E-2},{"$f":"SUBTOTAL(109,GERÄTE[Monatliche Betriebskosten])","v":605},{"$f":"SUBTOTAL(109,GERÄTE[Erwarteter Wert bei Vertragsende])","v":24000},{"$f":"SUBTOTAL(101,GERÄTE[Verbleibende monatliche Zahlungen])","v":19.333333333333332},{"$f":"SUBTOTAL(109,GERÄTE[Monatliche Zahlung])","v":1160.5943035068672},{"$f":"SUBTOTAL(109,GERÄTE[Monatliche Kosten \ngesamt])","v":1765.5943035068672},{"$f":"SUBTOTAL(101,GERÄTE[Jährliche Abschreibung \n(linear)])","v":2638.8888888888887},{"$f":"SUBTOTAL(101,GERÄTE[Monatliche Abschreibung \n(linear)])","v":219.90740740740739},{"$f":"SUBTOTAL(109,GERÄTE[Aktueller Wert])","v":36491.552511415524}]

{"sheet":"Pivotdaten","index":2,"n_rows":15,"n_cols":8,"rows_kept":15,"cut":false,"hidden":true,"merged":[]}
[null,"Pivotdaten"]
[null,"Dieses Arbeitsblatt sollte ausgeblendet bleiben. Wenn die Struktur der PivotTable auf diesem Arbeitsblatt geändert wird, kann dies zu Fehlern in den Dashboarddatenschnitten führen."]
[]
[null,"Artikelbeschreibung \n(Hersteller und Modell)","(Alle)"]
[null,"Standort","(Alle)"]
[null,"Zustand","(Alle)"]
[null,"Lieferant","(Alle)"]
[null,"Verbleibende Betriebsjahre","(Alle)"]
[null,"Darlehensbedingungen \n(Jahre)","(Alle)"]
[]
[null,"Zeilenbeschriftungen","Anzahl","Betriebskosten","Zahlungsbetrag","Monatliche Kosten gesamt","Monatliche Abschreibung","Aktueller Wert "]
[null,123,1,200,634.06458586867973,834.06458586867973,208.33333333333334,25034.246575342466]
[null,234,1,120,343.43280007691891,463.43280007691891,263.88888888888886,6678.5388127853885]
[null,345,1,285,183.09691756126861,468.09691756126858,187.5,4778.767123287671]
[null,"Gesamtsumme",3,605,1160.5943035068672,1765.5943035068672,659.72222222222217,36491.552511415524]